[Event "GrandPrix_29.05"]
[Site "Chess.com"]
[Date "2020.05.29"]
[Round "3"]
[White "ehrenfeld"]
[Black "Angry_Twin"]
[Result "0-1"]
[WhiteElo "2055"]
[BlackElo "2388"]
[TimeControl "600+2"]
[EndTime "10:29:04 PDT"]
[Termination "Angry_Twin won by resignation"]

1. e4 {[%clk 0:09:59.4]} 1... c5 {[%clk 0:10:00.6]} 2. d3 {[%clk 0:09:59]} 2...
Nc6 {[%clk 0:10:01]} 3. f4 {[%clk 0:09:59.5]} 3... g6 {[%clk 0:10:00.1]} 4. Nf3
{[%clk 0:09:59.6]} 4... Bg7 {[%clk 0:10:01.5]} 5. Be2 {[%clk 0:10:00.5]} 5... d6
{[%clk 0:10:02.6]} 6. O-O {[%clk 0:10:00.5]} 6... Nh6 {[%clk 0:10:03.4]} 7. c3
{[%clk 0:09:54.7]} 7... f5 {[%clk 0:10:04.2]} 8. Na3 {[%clk 0:09:53.4]} 8... O-O
{[%clk 0:10:04.5]} 9. Nc2 {[%clk 0:09:44.5]} 9... Nf7 {[%clk 0:09:44.4]} 10.
exf5 {[%clk 0:09:28.1]} 10... gxf5 {[%clk 0:09:43.3]} 11. d4 {[%clk 0:09:24.2]}
11... cxd4 {[%clk 0:09:39.2]} 12. Ncxd4 {[%clk 0:09:24.6]} 12... e5 {[%clk
0:09:29.5]} 13. Nxc6 {[%clk 0:09:19]} 13... bxc6 {[%clk 0:09:30.3]} 14. Be3
{[%clk 0:08:36.9]} 14... e4 {[%clk 0:09:08]} 15. Nd4 {[%clk 0:08:34.9]} 15...
Bd7 {[%clk 0:09:08.8]} 16. Qd2 {[%clk 0:08:24.6]} 16... a6 {[%clk 0:08:43.9]}
17. Rad1 {[%clk 0:07:50.9]} 17... c5 {[%clk 0:08:43.5]} 18. Nb3 {[%clk
0:07:42.9]} 18... Be6 {[%clk 0:08:43.2]} 19. Qc2 {[%clk 0:07:02.8]} 19... Qc7
{[%clk 0:08:27.6]} 20. Kh1 {[%clk 0:05:48]} 20... a5 {[%clk 0:08:23.2]} 21. a4
{[%clk 0:05:36.8]} 21... Kh8 {[%clk 0:08:19.1]} 22. Bb5 {[%clk 0:05:36.2]} 22...
Rfd8 {[%clk 0:08:11.5]} 23. c4 {[%clk 0:05:35]} 23... Nh6 {[%clk 0:08:09.9]} 24.
h3 {[%clk 0:05:33.4]} 24... Ng8 {[%clk 0:08:09.7]} 25. Nc1 {[%clk 0:05:21.9]}
25... Nf6 {[%clk 0:08:07.2]} 26. Ne2 {[%clk 0:05:20.9]} 26... d5 {[%clk
0:06:10.1]} 27. cxd5 {[%clk 0:05:08.3]} 27... Nxd5 {[%clk 0:06:12]} 28. Qxc5
{[%clk 0:05:03.9]} 28... Qxc5 {[%clk 0:05:42]} 29. Bxc5 {[%clk 0:05:04.3]} 29...
Bxb2 {[%clk 0:05:42.9]} 30. Rb1 {[%clk 0:03:38.9]} 30... Bf6 {[%clk 0:05:37.7]}
31. Nd4 {[%clk 0:03:37.4]} 31... Bxd4 {[%clk 0:03:53.2]} 32. Bxd4+ {[%clk
0:03:37.7]} 32... Kg8 {[%clk 0:03:54.7]} 33. g4 {[%clk 0:02:36.2]} 33... Nb4
{[%clk 0:03:48.8]} 34. Bf6 {[%clk 0:02:31.5]} 34... Rd2 {[%clk 0:03:44.8]} 35.
gxf5 {[%clk 0:02:25.9]} 35... Bd5 {[%clk 0:03:42.4]} 36. Rb2 {[%clk 0:01:13.1]}
36... e3+ {[%clk 0:03:26.3]} 37. Kg1 {[%clk 0:01:13.8]} 37... Kf7 {[%clk
0:03:27.8]} 38. Rxd2 {[%clk 0:01:09.1]} 38... exd2 {[%clk 0:02:59.5]} 39. Bc3
{[%clk 0:01:05.5]} 39... Rg8+ {[%clk 0:02:33.4]} 40. Kf2 {[%clk 0:01:05.9]}
40... Rg2+ {[%clk 0:02:06.4]} 41. Ke3 {[%clk 0:01:06.6]} 41... Rg3+ {[%clk
0:02:05.6]} 42. Kxd2 {[%clk 0:01:00.3]} 42... Rg2+ {[%clk 0:01:57.2]} 43. Ke3
{[%clk 0:00:59.3]} 43... Nc2+ {[%clk 0:01:57.1]} 44. Kd3 {[%clk 0:00:56.5]}
44... Na3 {[%clk 0:01:54.2]} 45. Bxa5 {[%clk 0:00:52.4]} 45... Rb2 {[%clk
0:01:47.7]} 46. Bc3 {[%clk 0:00:51.1]} 46... Rxb5 {[%clk 0:01:48.6]} 47. axb5
{[%clk 0:00:49.7]} 47... Bc4+ {[%clk 0:01:49.9]} 48. Kd4 {[%clk 0:00:48.1]}
48... Bxf1 {[%clk 0:01:51]} 49. b6 {[%clk 0:00:49.4]} 49... Bg2 {[%clk
0:01:47.1]} 50. Kc5 {[%clk 0:00:47.8]} 50... Nc2 {[%clk 0:01:31.1]} 51. Kd6
{[%clk 0:00:41.5]} 51... Ne3 {[%clk 0:01:31.9]} 52. f6 {[%clk 0:00:35.5]} 52...
h5 {[%clk 0:01:16.7]} 53. h4 {[%clk 0:00:35]} 53... Nf5+ {[%clk 0:00:53.3]} 54.
Kc7 {[%clk 0:00:35.4]} 54... Nxh4 {[%clk 0:00:54.6]} 55. b7 {[%clk 0:00:35.8]}
55... Bxb7 {[%clk 0:00:55.2]} 56. Kxb7 {[%clk 0:00:36.9]} 56... Nf3 {[%clk
0:00:57.1]} 57. f5 {[%clk 0:00:20.8]} 57... h4 {[%clk 0:00:53.9]} 58. Ba5 {[%clk
0:00:20.2]} 58... h3 {[%clk 0:00:44.6]} 59. Bc7 {[%clk 0:00:20]} 59... Kxf6
{[%clk 0:00:46]} 60. Kc6 {[%clk 0:00:19.7]} 60... Kxf5 {[%clk 0:00:21]} 61. Kd5
{[%clk 0:00:20.6]} 61... Ng5 {[%clk 0:00:20.3]} 62. Bb8 {[%clk 0:00:15.4]} 62...
Kg4 {[%clk 0:00:21.1]} 63. Kd4 {[%clk 0:00:15.6]} 63... Kf3 {[%clk 0:00:22.3]}
64. Kd3 {[%clk 0:00:13.3]} 64... Kg2 {[%clk 0:00:23.1]} 65. Ke2 {[%clk
0:00:13.7]} 65... Ne4 {[%clk 0:00:24.3]} 66. Bc7 {[%clk 0:00:13]} 66... Ng3+
{[%clk 0:00:24.8]} 67. Bxg3 {[%clk 0:00:12.8]} 67... Kxg3 {[%clk 0:00:26.7]} 68.
Kf1 {[%clk 0:00:14]} 68... h2 {[%clk 0:00:28.2]} 0-1

[Event "GrandPrix_29.05"]
[Site "Chess.com"]
[Date "2020.05.29"]
[Round "3"]
[White "Vnebo"]
[Black "Thor736"]
[Result "1/2-1/2"]
[WhiteElo "2143"]
[BlackElo "2013"]
[TimeControl "600+2"]
[EndTime "10:29:05 PDT"]
[Termination "Game drawn by agreement"]

1. e4 {[%clk 0:10:01.2]} 1... c5 {[%clk 0:09:40.5]} 2. Nf3 {[%clk 0:10:00.2]}
2... d6 {[%clk 0:09:39.6]} 3. d4 {[%clk 0:10:00.5]} 3... cxd4 {[%clk 0:09:40.5]}
4. Nxd4 {[%clk 0:10:02.4]} 4... Nf6 {[%clk 0:09:41.6]} 5. f3 {[%clk 0:10:03.1]}
5... Nc6 {[%clk 0:09:36]} 6. c4 {[%clk 0:10:02.9]} 6... e6 {[%clk 0:09:37.2]} 7.
Nc3 {[%clk 0:10:03.3]} 7... Be7 {[%clk 0:09:38.3]} 8. Be3 {[%clk 0:10:03.9]}
8... O-O {[%clk 0:09:38.2]} 9. Be2 {[%clk 0:10:04.7]} 9... d5 {[%clk 0:09:39]}
10. cxd5 {[%clk 0:10:04.8]} 10... exd5 {[%clk 0:09:39.3]} 11. Nxc6 {[%clk
0:10:03.8]} 11... bxc6 {[%clk 0:09:40.3]} 12. exd5 {[%clk 0:10:05]} 12... Nxd5
{[%clk 0:09:41.5]} 13. Nxd5 {[%clk 0:10:05.6]} 13... cxd5 {[%clk 0:09:42.7]} 14.
O-O {[%clk 0:10:06.6]} 14... Bf6 {[%clk 0:09:39.1]} 15. Bd4 {[%clk 0:10:05.8]}
15... Rb8 {[%clk 0:09:38.8]} 16. Qd2 {[%clk 0:09:56.4]} 16... Re8 {[%clk
0:09:27]} 17. Rfe1 {[%clk 0:09:45]} 17... Bxd4+ {[%clk 0:07:44.6]} 18. Qxd4
{[%clk 0:09:43.7]} 18... Qa5 {[%clk 0:07:43]} 19. a3 {[%clk 0:06:51.5]} 19...
Rb3 {[%clk 0:07:37.3]} 20. Rec1 {[%clk 0:06:39.6]} 20... h6 {[%clk 0:05:42]} 21.
Bf1 {[%clk 0:06:26.6]} 21... Be6 {[%clk 0:05:12.2]} 22. Rc2 {[%clk 0:05:57.6]}
22... Reb8 {[%clk 0:05:02.6]} 23. Rd1 {[%clk 0:05:18]} 23... Kf8 {[%clk
0:03:47.3]} 24. Rdd2 {[%clk 0:05:07.4]} 24... Qb6 {[%clk 0:03:39.3]} 25. Qxb6
{[%clk 0:04:46.7]} 25... R8xb6 {[%clk 0:03:39.2]} 26. Bd3 {[%clk 0:04:22.7]}
26... a5 {[%clk 0:02:38.5]} 27. Kf2 {[%clk 0:04:19.5]} 27... Ke7 {[%clk
0:02:35]} 28. Ke1 {[%clk 0:04:16.7]} 28... Kd6 {[%clk 0:02:32]} 29. Kd1 {[%clk
0:04:13.8]} 29... g5 {[%clk 0:02:26.7]} 30. Kc1 {[%clk 0:04:13.1]} 30... h5
{[%clk 0:01:43.3]} 31. Rd1 {[%clk 0:03:42.9]} 31... h4 {[%clk 0:01:38.6]} 32. g3
{[%clk 0:03:27.8]} 32... hxg3 {[%clk 0:01:31.8]} 33. hxg3 {[%clk 0:03:29.7]}
33... Rxd3 {[%clk 0:00:53.5]} 34. Rxd3 {[%clk 0:03:29.2]} 34... Bf5 {[%clk
0:00:55.1]} 35. Rd4 {[%clk 0:03:04.1]} 35... Bxc2 {[%clk 0:00:52.7]} 36. Kxc2
{[%clk 0:03:06]} 36... Ke5 {[%clk 0:00:38.5]} 37. Ra4 {[%clk 0:03:03.5]} 37...
Rb5 {[%clk 0:00:38.9]} 38. f4+ {[%clk 0:02:23.1]} 38... gxf4 {[%clk 0:00:39]}
39. gxf4+ {[%clk 0:02:25]} 39... Kf5 {[%clk 0:00:40]} 40. Rd4 {[%clk 0:02:20.5]}
40... Ke6 {[%clk 0:00:35.4]} 41. b4 {[%clk 0:02:12.5]} 41... axb4 {[%clk
0:00:35.9]} 42. axb4 {[%clk 0:01:51.8]} 42... Kd6 {[%clk 0:00:23.5]} 43. Kb3
{[%clk 0:01:49.5]} 43... Rb8 {[%clk 0:00:23.3]} 44. Ka4 {[%clk 0:00:49.6]} 44...
Kc6 {[%clk 0:00:23.5]} 45. Rd1 {[%clk 0:00:44.5]} 45... Ra8+ {[%clk 0:00:24.8]}
46. Kb3 {[%clk 0:00:44.8]} 46... Re8 {[%clk 0:00:24.9]} 47. Rc1+ {[%clk
0:00:41.9]} 47... Kb6 {[%clk 0:00:23.2]} 48. Rc5 {[%clk 0:00:27.2]} 48... Re4
{[%clk 0:00:06.7]} 49. Rxd5 {[%clk 0:00:27.6]} 49... Rxf4 {[%clk 0:00:07.9]} 50.
Ka4 {[%clk 0:00:29]} 50... Kb7 {[%clk 0:00:06.5]} 51. Ka5 {[%clk 0:00:24.1]}
51... Rf1 {[%clk 0:00:03.8]} 52. Re5 {[%clk 0:00:19]} 52... Kb8 {[%clk
0:00:03.5]} 53. b5 {[%clk 0:00:16.9]} 53... Rc1 {[%clk 0:00:03.7]} 54. Kb6
{[%clk 0:00:14.1]} 54... Rc8 {[%clk 0:00:04.4]} 55. Rf5 {[%clk 0:00:11.5]} 55...
Rf8 {[%clk 0:00:04.7]} 56. Rf6 {[%clk 0:00:12.6]} 56... Ka8 {[%clk 0:00:04.9]}
57. Ka6 {[%clk 0:00:13.3]} 57... Re8 {[%clk 0:00:05.3]} 58. Rxf7 {[%clk
0:00:11.8]} 58... Re6+ {[%clk 0:00:06]} 59. b6 {[%clk 0:00:11.8]} 59... Re8
{[%clk 0:00:07.5]} 60. Rd7 {[%clk 0:00:10.9]} 60... Rf8 {[%clk 0:00:08.4]} 61.
Rh7 {[%clk 0:00:11.6]} 61... Re8 {[%clk 0:00:09.4]} 62. Rh6 {[%clk 0:00:11.7]}
62... Rf8 {[%clk 0:00:09.8]} 63. Rc6 {[%clk 0:00:12.4]} 63... Re8 {[%clk
0:00:10]} 1/2-1/2

[Event "GrandPrix_29.05"]
[Site "Chess.com"]
[Date "2020.05.29"]
[Round "3"]
[White "CherepZhenya"]
[Black "Shahinyan_ChessMood"]
[Result "0-1"]
[WhiteElo "2147"]
[BlackElo "2216"]
[TimeControl "600+2"]
[EndTime "10:29:07 PDT"]
[Termination "Shahinyan_ChessMood won by checkmate"]

1. e4 {[%clk 0:10:00]} 1... e6 {[%clk 0:09:54.6]} 2. d4 {[%clk 0:09:59.5]} 2...
d5 {[%clk 0:09:49.8]} 3. Nc3 {[%clk 0:09:59.9]} 3... Bb4 {[%clk 0:09:48.7]} 4.
e5 {[%clk 0:09:59.8]} 4... c5 {[%clk 0:09:49.7]} 5. a3 {[%clk 0:10:00.2]} 5...
Bxc3+ {[%clk 0:09:50.9]} 6. bxc3 {[%clk 0:10:01]} 6... Qc7 {[%clk 0:09:52.6]} 7.
Nf3 {[%clk 0:10:01.7]} 7... Ne7 {[%clk 0:09:51.2]} 8. a4 {[%clk 0:10:01.6]} 8...
b6 {[%clk 0:09:51.5]} 9. Bb5+ {[%clk 0:09:56.1]} 9... Bd7 {[%clk 0:09:30.4]} 10.
O-O {[%clk 0:09:55.1]} 10... O-O {[%clk 0:09:30.2]} 11. Bd3 {[%clk 0:09:51.4]}
11... h6 {[%clk 0:09:24.7]} 12. a5 {[%clk 0:09:40.7]} 12... c4 {[%clk
0:09:05.7]} 13. axb6 {[%clk 0:09:29.7]} 13... Qxb6 {[%clk 0:09:07.6]} 14. Be2
{[%clk 0:09:29.6]} 14... Nbc6 {[%clk 0:08:46.5]} 15. Ba3 {[%clk 0:09:28.3]}
15... f6 {[%clk 0:08:46.9]} 16. exf6 {[%clk 0:09:19.7]} 16... Rxf6 {[%clk
0:08:48.8]} 17. Bc5 {[%clk 0:09:02.6]} 17... Qc7 {[%clk 0:08:47.3]} 18. Qc1
{[%clk 0:08:38.3]} 18... Ng6 {[%clk 0:08:28.8]} 19. Re1 {[%clk 0:08:31.1]} 19...
a5 {[%clk 0:08:19.3]} 20. Qe3 {[%clk 0:08:10.6]} 20... a4 {[%clk 0:08:14.9]} 21.
g3 {[%clk 0:07:40.8]} 21... Nce7 {[%clk 0:07:55.4]} 22. Bf1 {[%clk 0:07:00.3]}
22... Nf5 {[%clk 0:07:26.4]} 23. Qe2 {[%clk 0:07:00.1]} 23... Nd6 {[%clk
0:07:06.6]} 24. Nd2 {[%clk 0:06:22.6]} 24... Nb5 {[%clk 0:06:43.5]} 25. Qe3
{[%clk 0:06:07.9]} 25... Ra6 {[%clk 0:05:01.8]} 26. f4 {[%clk 0:05:57.1]} 26...
Nh8 {[%clk 0:04:27.9]} 27. Nf3 {[%clk 0:05:32.3]} 27... Be8 {[%clk 0:04:18.2]}
28. Ne5 {[%clk 0:05:27]} 28... Nf7 {[%clk 0:04:14.9]} 29. Bh3 {[%clk 0:05:04.4]}
29... Nxe5 {[%clk 0:03:49.5]} 30. fxe5 {[%clk 0:04:53.6]} 30... Rf7 {[%clk
0:03:50.4]} 31. Rf1 {[%clk 0:04:36.4]} 31... a3 {[%clk 0:03:45.8]} 32. Rfb1
{[%clk 0:04:22.2]} 32... Qa5 {[%clk 0:03:23.8]} 33. Bb4 {[%clk 0:04:19.5]} 33...
Qd8 {[%clk 0:03:25.2]} 34. Bc5 {[%clk 0:03:59.6]} 34... Qg5 {[%clk 0:03:08.2]}
35. Qxg5 {[%clk 0:03:53.9]} 35... hxg5 {[%clk 0:03:10.1]} 36. Bb4 {[%clk
0:03:18.9]} 36... Rf3 {[%clk 0:02:24.6]} 37. Bg4 {[%clk 0:03:11.5]} 37... Rxc3
{[%clk 0:01:39.2]} 38. Bxc3 {[%clk 0:03:07.5]} 38... Nxc3 {[%clk 0:01:41.1]} 39.
Rb8 {[%clk 0:03:00.7]} 39... Kf7 {[%clk 0:01:42.4]} 40. Bh5+ {[%clk 0:01:55.6]}
40... g6 {[%clk 0:01:41.9]} 41. Bxg6+ {[%clk 0:01:56.7]} 41... Kxg6 {[%clk
0:01:43.8]} 42. Rxe8 {[%clk 0:01:57.5]} 42... Ne2+ {[%clk 0:01:11.3]} 43. Kf2
{[%clk 0:01:51.6]} 43... Nxd4 {[%clk 0:01:10.3]} 44. Ra2 {[%clk 0:01:50.1]}
44... Kf5 {[%clk 0:01:04.5]} 45. h4 {[%clk 0:01:45]} 45... gxh4 {[%clk
0:01:04.7]} 46. gxh4 {[%clk 0:01:45.9]} 46... Kxe5 {[%clk 0:01:06.6]} 47. h5
{[%clk 0:01:34.7]} 47... Nb5 {[%clk 0:01:05]} 48. h6 {[%clk 0:01:30.6]} 48...
Ra7 {[%clk 0:01:06.1]} 49. Rb8 {[%clk 0:01:26.6]} 49... Nd4 {[%clk 0:00:33.8]}
50. c3 {[%clk 0:01:00.4]} 50... Nf5 {[%clk 0:00:31.9]} 51. Rxa3 {[%clk
0:00:58.6]} 51... Rh7 {[%clk 0:00:19]} 52. Ra6 {[%clk 0:00:42.6]} 52... Rxh6
{[%clk 0:00:19.5]} 53. Re8 {[%clk 0:00:43.2]} 53... Nd6 {[%clk 0:00:15.7]} 54.
Rg8 {[%clk 0:00:33.1]} 54... Ne4+ {[%clk 0:00:16.9]} 55. Ke3 {[%clk 0:00:33.8]}
55... Rh3+ {[%clk 0:00:15.5]} 56. Ke2 {[%clk 0:00:34.2]} 56... Nxc3+ {[%clk
0:00:16.8]} 57. Kd2 {[%clk 0:00:33.7]} 57... Ne4+ {[%clk 0:00:18]} 58. Kc2
{[%clk 0:00:34.4]} 58... Rh2+ {[%clk 0:00:17.9]} 59. Kc1 {[%clk 0:00:34.6]}
59... c3 {[%clk 0:00:17.5]} 60. Rg6 {[%clk 0:00:24.6]} 60... Kd4 {[%clk
0:00:17.4]} 61. Rgxe6 {[%clk 0:00:23.4]} 61... Kd3 {[%clk 0:00:17.1]} 62. Kb1
{[%clk 0:00:15.4]} 62... Nd2+ {[%clk 0:00:11.6]} 63. Ka1 {[%clk 0:00:12.5]}
63... Nb3+ {[%clk 0:00:09.9]} 64. Kb1 {[%clk 0:00:12.9]} 64... Rb2# {[%clk
0:00:10.9]} 0-1

[Event "GrandPrix_29.05"]
[Site "Chess.com"]
[Date "2020.05.29"]
[Round "3"]
[White "Meizon19"]
[Black "monalize"]
[Result "1-0"]
[WhiteElo "2252"]
[BlackElo "1997"]
[TimeControl "600+2"]
[EndTime "10:29:09 PDT"]
[Termination "Meizon19 won by resignation"]

1. e4 {[%clk 0:10:01.9]} 1... c5 {[%clk 0:09:59.4]} 2. Nf3 {[%clk 0:10:02.5]}
2... d6 {[%clk 0:09:59.3]} 3. d4 {[%clk 0:10:02.9]} 3... cxd4 {[%clk 0:10:00]}
4. Nxd4 {[%clk 0:10:04.1]} 4... Nf6 {[%clk 0:10:00.8]} 5. Nc3 {[%clk 0:10:04.5]}
5... a6 {[%clk 0:10:01.6]} 6. f3 {[%clk 0:10:05.4]} 6... e6 {[%clk 0:09:50.2]}
7. Be3 {[%clk 0:10:05.3]} 7... h5 {[%clk 0:09:42.7]} 8. Qd2 {[%clk 0:10:01.6]}
8... b5 {[%clk 0:09:39.8]} 9. a4 {[%clk 0:09:37.3]} 9... b4 {[%clk 0:09:38.8]}
10. Na2 {[%clk 0:09:38.3]} 10... d5 {[%clk 0:09:37]} 11. e5 {[%clk 0:09:38.3]}
11... Nfd7 {[%clk 0:09:37.3]} 12. f4 {[%clk 0:09:38.5]} 12... Nc5 {[%clk
0:08:56.1]} 13. Bd3 {[%clk 0:09:12]} 13... Nxd3+ {[%clk 0:08:36.1]} 14. cxd3
{[%clk 0:09:10.8]} 14... a5 {[%clk 0:08:35.4]} 15. O-O {[%clk 0:09:04.3]} 15...
g6 {[%clk 0:08:29.4]} 16. Nc1 {[%clk 0:08:27]} 16... Be7 {[%clk 0:07:48.8]} 17.
Ncb3 {[%clk 0:08:18.8]} 17... Bd7 {[%clk 0:07:38.2]} 18. Rfc1 {[%clk 0:07:45.4]}
18... O-O {[%clk 0:07:32.7]} 19. Nc5 {[%clk 0:07:44]} 19... Kh7 {[%clk
0:06:25.9]} 20. Nb7 {[%clk 0:07:15.5]} 20... Qe8 {[%clk 0:06:17.7]} 21. b3
{[%clk 0:06:38.1]} 21... f6 {[%clk 0:05:19]} 22. exf6 {[%clk 0:06:08.5]} 22...
Bxf6 {[%clk 0:05:17.2]} 23. Rc2 {[%clk 0:05:49.3]} 23... Qe7 {[%clk 0:04:54.5]}
24. Re1 {[%clk 0:05:27.3]} 24... Rc8 {[%clk 0:04:28.9]} 25. Qc1 {[%clk
0:05:04.8]} 25... Na6 {[%clk 0:03:55.6]} 26. Nxa5 {[%clk 0:03:50.9]} 26... Rxc2
{[%clk 0:03:33.1]} 27. Qxc2 {[%clk 0:03:36]} 27... Rc8 {[%clk 0:03:32.8]} 28.
Qe2 {[%clk 0:03:00.7]} 28... Qd8 {[%clk 0:03:21.4]} 29. Nc4 {[%clk 0:02:28]}
29... dxc4 {[%clk 0:03:20.2]} 30. dxc4 {[%clk 0:02:29.9]} 30... Nc5 {[%clk
0:03:17.9]} 31. Qc2 {[%clk 0:02:17.6]} 31... Qf8 {[%clk 0:03:12.8]} 32. Rd1
{[%clk 0:01:53.6]} 32... Bg7 {[%clk 0:03:06.3]} 33. Nf3 {[%clk 0:01:50.3]} 33...
Bf6 {[%clk 0:02:32.3]} 34. Kh1 {[%clk 0:01:50]} 34... Bc6 {[%clk 0:02:29]} 35.
Nd4 {[%clk 0:01:42.1]} 35... Be4 {[%clk 0:02:28.1]} 36. Qe2 {[%clk 0:01:40]}
36... Rd8 {[%clk 0:02:22]} 37. Bf2 {[%clk 0:01:37.6]} 37... Qd6 {[%clk
0:02:08.7]} 38. Qe3 {[%clk 0:01:22.9]} 38... Bf5 {[%clk 0:02:01]} 39. a5 {[%clk
0:01:16]} 39... Ne4 {[%clk 0:01:58.8]} 40. Bg1 {[%clk 0:01:14]} 40... Nc3 {[%clk
0:01:50.4]} 41. Rd2 {[%clk 0:01:08.7]} 41... Ne4 {[%clk 0:01:38.1]} 42. Rd1
{[%clk 0:01:04]} 42... Qa6 {[%clk 0:01:26.1]} 43. h3 {[%clk 0:00:54.4]} 43... h4
{[%clk 0:01:25]} 44. Kh2 {[%clk 0:00:54.5]} 44... Qxa5 {[%clk 0:01:21.4]} 45.
Nc6 {[%clk 0:00:50.5]} 45... Qa8 {[%clk 0:01:10.4]} 46. Nxd8 {[%clk 0:00:49.4]}
46... Bxd8 {[%clk 0:01:11.2]} 47. Rd7+ {[%clk 0:00:50]} 47... Kg8 {[%clk
0:01:10.2]} 48. Qd4 {[%clk 0:00:50]} 48... Bf6 {[%clk 0:01:10.4]} 49. Qb6 {[%clk
0:00:38.4]} 49... Qc8 {[%clk 0:01:00.9]} 50. Rb7 {[%clk 0:00:37.3]} 50... Bd8
{[%clk 0:00:54.9]} 51. Rb8 {[%clk 0:00:37.4]} 51... Bxb6 {[%clk 0:00:54.2]} 52.
Rxc8+ {[%clk 0:00:38.6]} 52... Kf7 {[%clk 0:00:55.5]} 53. Bxb6 {[%clk
0:00:40.5]} 53... Nd2 {[%clk 0:00:55.7]} 54. Bc5 {[%clk 0:00:36.8]} 54... Nxb3
{[%clk 0:00:55.8]} 55. Bxb4 {[%clk 0:00:38.4]} 55... Nd4 {[%clk 0:00:54]} 56. c5
{[%clk 0:00:36.9]} 56... Be4 {[%clk 0:00:54.1]} 57. Bc3 {[%clk 0:00:33.2]} 57...
Nc6 {[%clk 0:00:54.5]} 58. Be1 {[%clk 0:00:34.1]} 58... Ne7 {[%clk 0:00:53.3]}
59. Rc7 {[%clk 0:00:34.7]} 59... Ke8 {[%clk 0:00:52.4]} 60. Bxh4 {[%clk
0:00:35.4]} 60... Nf5 {[%clk 0:00:53.5]} 61. Bf6 {[%clk 0:00:34.5]} 61... Bd5
{[%clk 0:00:54.3]} 62. g4 {[%clk 0:00:34.7]} 62... Ne3 {[%clk 0:00:53.8]} 63.
Rc8+ {[%clk 0:00:28.2]} 63... Kd7 {[%clk 0:00:53.9]} 64. Rg8 {[%clk 0:00:27.4]}
64... Be4 {[%clk 0:00:54.3]} 65. Be5 {[%clk 0:00:24.3]} 65... Kc6 {[%clk
0:00:47.7]} 66. Rc8+ {[%clk 0:00:24.6]} 66... Kb5 {[%clk 0:00:48.5]} 67. Kg3
{[%clk 0:00:22.2]} 67... Nf1+ {[%clk 0:00:46.7]} 68. Kh4 {[%clk 0:00:23.3]}
68... Nd2 {[%clk 0:00:46]} 69. Kg5 {[%clk 0:00:23.4]} 69... Nf3+ {[%clk
0:00:46.3]} 70. Kf6 {[%clk 0:00:25]} 70... Ng1 {[%clk 0:00:46.3]} 71. h4 {[%clk
0:00:25.8]} 71... Nf3 {[%clk 0:00:46.2]} 72. h5 {[%clk 0:00:27.3]} 72... gxh5
{[%clk 0:00:46.6]} 73. gxh5 {[%clk 0:00:28.9]} 73... Nh2 {[%clk 0:00:47.7]} 74.
h6 {[%clk 0:00:29.7]} 74... Bf5 {[%clk 0:00:48.2]} 75. c6 {[%clk 0:00:29.7]}
75... Ng4+ {[%clk 0:00:48.4]} 76. Kg7 {[%clk 0:00:31.3]} 1-0

[Event "GrandPrix_29.05"]
[Site "Chess.com"]
[Date "2020.05.29"]
[Round "3"]
[White "vladislavkovalev"]
[Black "Todorovic1991"]
[Result "1-0"]
[WhiteElo "2680"]
[BlackElo "1751"]
[TimeControl "600+2"]
[EndTime "10:29:16 PDT"]
[Termination "vladislavkovalev won on time"]

1. e4 {[%clk 0:10:01.9]} 1... e5 {[%clk 0:09:59.5]} 2. Nf3 {[%clk 0:10:03.1]}
2... Nc6 {[%clk 0:10:00.2]} 3. Bb5 {[%clk 0:10:04.7]} 3... Nf6 {[%clk
0:09:59.3]} 4. O-O {[%clk 0:10:05.2]} 4... d6 {[%clk 0:09:58.8]} 5. d4 {[%clk
0:09:51.8]} 5... Bd7 {[%clk 0:09:58.2]} 6. Re1 {[%clk 0:09:46.2]} 6... Be7
{[%clk 0:09:53.6]} 7. c4 {[%clk 0:08:18.6]} 7... exd4 {[%clk 0:09:49.3]} 8. Bxc6
{[%clk 0:08:00.5]} 8... bxc6 {[%clk 0:09:12.4]} 9. Nxd4 {[%clk 0:08:00.7]} 9...
O-O {[%clk 0:08:40.2]} 10. Nc3 {[%clk 0:07:58.7]} 10... Re8 {[%clk 0:08:13.2]}
11. b3 {[%clk 0:06:55.3]} 11... Bf8 {[%clk 0:08:10.6]} 12. Bg5 {[%clk
0:06:48.2]} 12... h6 {[%clk 0:08:11]} 13. Bh4 {[%clk 0:06:48.6]} 13... Be7
{[%clk 0:08:11.7]} 14. Qf3 {[%clk 0:06:19.9]} 14... Nh7 {[%clk 0:06:50.6]} 15.
Bxe7 {[%clk 0:05:32.2]} 15... Qxe7 {[%clk 0:06:27.9]} 16. Qg3 {[%clk 0:05:24.1]}
16... Qg5 {[%clk 0:05:19.4]} 17. Rad1 {[%clk 0:05:18]} 17... Qxg3 {[%clk
0:04:53.6]} 18. hxg3 {[%clk 0:05:19.9]} 18... Nf6 {[%clk 0:04:47]} 19. f3 {[%clk
0:05:19.5]} 19... h5 {[%clk 0:04:43]} 20. Kf2 {[%clk 0:05:20]} 20... g6 {[%clk
0:04:43.7]} 21. Nc2 {[%clk 0:05:02]} 21... c5 {[%clk 0:04:12.9]} 22. Ne3 {[%clk
0:04:53.4]} 22... Bc6 {[%clk 0:04:12.4]} 23. Rd3 {[%clk 0:03:27.3]} 23... Rab8
{[%clk 0:04:09.2]} 24. Rb1 {[%clk 0:03:11.5]} 24... Rb6 {[%clk 0:03:39.5]} 25.
Ke2 {[%clk 0:02:54.7]} 25... Reb8 {[%clk 0:03:26.1]} 26. Ned1 {[%clk 0:02:36.9]}
26... Kg7 {[%clk 0:03:12.1]} 27. Kd2 {[%clk 0:02:36.5]} 27... a6 {[%clk
0:03:06.5]} 28. Kc2 {[%clk 0:02:33.7]} 28... Nd7 {[%clk 0:03:00.4]} 29. Ne3
{[%clk 0:02:30.6]} 29... Nf6 {[%clk 0:03:01.3]} 30. Rdd1 {[%clk 0:02:15.7]}
30... Kf8 {[%clk 0:02:51.1]} 31. Re1 {[%clk 0:02:07.3]} 31... Kg7 {[%clk
0:02:41.5]} 32. Ned1 {[%clk 0:01:50.6]} 32... Re8 {[%clk 0:02:38.5]} 33. Nf2
{[%clk 0:01:51.1]} 33... Nd7 {[%clk 0:02:17.2]} 34. Nd3 {[%clk 0:01:51.8]} 34...
Ne5 {[%clk 0:02:13.7]} 35. Nf4 {[%clk 0:01:50.8]} 35... Rb7 {[%clk 0:02:06.7]}
36. Nfd5 {[%clk 0:01:43.5]} 36... Nd7 {[%clk 0:02:04.2]} 37. Re3 {[%clk
0:01:29.5]} 37... Bxd5 {[%clk 0:01:37.7]} 38. Nxd5 {[%clk 0:01:25.2]} 38... Nb6
{[%clk 0:01:38.3]} 39. Nc3 {[%clk 0:00:49.8]} 39... Rbb8 {[%clk 0:01:36.5]} 40.
Rd1 {[%clk 0:00:47.3]} 40... Re6 {[%clk 0:01:31.5]} 41. Ne2 {[%clk 0:00:42.7]}
41... Rbe8 {[%clk 0:01:30.1]} 42. Nf4 {[%clk 0:00:44.1]} 42... R6e7 {[%clk
0:01:30.8]} 43. Red3 {[%clk 0:00:36.6]} 43... Re5 {[%clk 0:01:27.1]} 44. R3d2
{[%clk 0:00:13.4]} 44... Kf6 {[%clk 0:01:07.8]} 45. Rh1 {[%clk 0:00:10.5]} 45...
Kg7 {[%clk 0:01:04.3]} 46. Rh2 {[%clk 0:00:07.1]} 46... f5 {[%clk 0:00:53.4]}
47. exf5 {[%clk 0:00:07.6]} 47... Rxf5 {[%clk 0:00:54.2]} 48. Rh1 {[%clk
0:00:06.3]} 48... Re3 {[%clk 0:00:44.8]} 49. Re2 {[%clk 0:00:05.2]} 49... Rfe5
{[%clk 0:00:40.9]} 50. Rxe3 {[%clk 0:00:06.2]} 50... Rxe3 {[%clk 0:00:41.9]} 51.
Kd2 {[%clk 0:00:07.9]} 51... Re7 {[%clk 0:00:40.1]} 52. Re1 {[%clk 0:00:07.4]}
52... Rxe1 {[%clk 0:00:39.8]} 53. Kxe1 {[%clk 0:00:09.3]} 53... Kf6 {[%clk
0:00:40.2]} 54. Ke2 {[%clk 0:00:10.9]} 54... Kf5 {[%clk 0:00:41.4]} 55. Ke3
{[%clk 0:00:11]} 55... c6 {[%clk 0:00:38.7]} 56. Nd3 {[%clk 0:00:08.9]} 56... a5
{[%clk 0:00:34]} 57. Nf2 {[%clk 0:00:08.7]} 57... d5 {[%clk 0:00:27.3]} 58. cxd5
{[%clk 0:00:04.8]} 58... cxd5 {[%clk 0:00:26.5]} 59. Nd3 {[%clk 0:00:06.1]}
59... Nd7 {[%clk 0:00:25.5]} 60. Nf2 {[%clk 0:00:04.8]} 60... Ke5 {[%clk
0:00:18.8]} 61. g4 {[%clk 0:00:05.9]} 61... d4+ {[%clk 0:00:07.8]} 62. Kd3
{[%clk 0:00:06.5]} 62... h4 {[%clk 0:00:08.8]} 63. Nh3 {[%clk 0:00:07]} 1-0